[Event "Reykjavik Open 2022"]
[Site "Reykjavik"]
[Date "2022.04.10"]
[Round "6.8"]
[White "Song, Julien"]
[Black "Gupta, Abhijeet"]
[Result "1-0"]
[ECO "D85"]
[WhiteElo "2352"]
[BlackElo "2628"]
[Annotator "TA"]
[PlyCount "131"]
[EventDate "2022.04.06"]
[EventCountry "ISL"]
[SourceTitle "playchess.com"]
[Source "ChessBase"]
[SourceQuality "1"]
[TimeControl "40/5400+30:1800+30"]

{[%evp 20,131,16,26,25,23,22,28,16,28,31,18,14,25,35,0,0,0,0,14,24,0,13,0,0,0,0,0,2,0,8,6,110,110,110,110,124,114,146,98,102,101,196,194,281,330,314,215,343,299,306,340,314,266,389,267,441,382,382,333,595,595,595,579,589,588,595,588,588,581,583,572,495,539,510,412,412,412,412,412,524,510,608,560,1134,897,2014,1931,29955,29957,12511,6101,29964,29965,29960,29966,29966,29968,29967,29969,29972,29974,29974,29975,29978,29979,29979,29980,29980,29981,29980,29982,29981,29982]} 1. d4 {[%emt 0:00:11]} Nf6 {[%emt 0:00:05]} 2. c4 {[%emt 0:00:12]} g6 {[%emt 0:00:03]} 3. Nc3 {[%emt 0:00:25]} d5 {[%emt 0:00:04]} 4. cxd5 {[%emt 0:00:47]} Nxd5 {[%emt 0:00:04]} 5. e4 {[%emt 0:00:12]} Nxc3 {[%emt 0:00:05]} 6. bxc3 {[%emt 0:00:03]} Bg7 {[%emt 0:00:05]} 7. Nf3 {[%emt 0:00:52]} c5 {[%emt 0:00:05]} 8. Be3 {[%emt 0:00:44][%cal Bc1e3,Be3c5,Bc5b4][%mdl 32]} Qa5 {[%emt 0:00:17]} 9. Qd2 {[%emt 0:00:46]} O-O {[%emt 0:00:12]} 10. Rc1 {[%emt 0:01:13]} Bg4 {[%emt 0:01:58]} 11. d5 $1 {[%emt 0:02:27] 11.d5 is better than 11.Be2.} b5 {[%emt 0:01:40][%cal Bb7b5,Bb5b4][%mdl 32] D85: Exchange Grünfeld: Unusual White 7th moves and lines with 7 Nf3.} 12. Bxc5 {[%emt 0:02:14]} Rc8 {[%emt 0:00:26]} 13. Bb4 {[%emt 0:01:28]} (13. Bxe7 Bxc3 14. Rxc3 Rxc3 $17) 13... Qc7 {[%emt 0:00:25] White has an edge.} 14. Nd4 {[%emt 0:02:34]} a5 $1 {[%emt 0:00:38]} 15. Ba3 {[%emt 0:01:12]} (15. Nxb5 Qe5 16. Ba3 Qxe4+ 17. Qe3 Qxd5 $15) 15... b4 {[%emt 0:00:24]} 16. Bb2 {[%emt 0:01:14]} Qb6 {[%emt 0:01:17]} 17. Bb5 {[%emt 0:03:12]} e5 $1 {[%emt 0:01:08]} (17... Bxd4 $2 18. Qxd4 Qxd4 19. cxd4 $16) 18. dxe6 $1 {[%emt 0:02:18]} (18. Qg5 $2 h5 19. Ne6 Bxe6 $19) 18... Bxe6 {[%emt 0:00:14]} (18... Bxd4 $2 19. Qxd4 (19. exf7+ Kxf7 20. cxd4 Qxb5 $16) 19... Qxd4 20. exf7+ Kxf7 21. cxd4 $18) 19. Nxe6 {[%emt 0:05:12]} fxe6 {[%emt 0:00:08]} 20. c4 $36 {[%emt 0:02:28][%cal Bc3c4,Bc4c5,Bc5b6,Bb6b7][%mdl 2080] aiming for Bxg7. White has some pressure.} Rd8 {[%emt 0:01:04]} 21. c5 {[%emt 0:01:29]} Rxd2 {[%emt 0:00:43]} 22. cxb6 {[%emt 0:02:23]} Rxb2 {[%emt 0:00:04]} 23. Rc8+ {[%emt 0:10:20]} (23. b7 Ra7 24. Rc8+ Kf7 25. Rc7+ Kf8 26. Rc8+ Ke7 27. Rxb8 Be5 $19) 23... Kf7 {[%emt 0:00:04]} 24. Rc7+ {[%emt 0:21:12]} Kf8 {[%emt 0:00:05] [#]} 25. O-O $146 {[%emt 0:23:40] Strongly threatening Ra7.} ({Predecessor:} 25. Ra7 Rb1+ 26. Ke2 Rxh1 27. f4 Rc1 28. Rxa8 Rc8 29. e5 g5 30. g3 gxf4 31. gxf4 {½-½ (43) Vidit,S (2726)-Vachier Lagrave,M (2784) chess24.com INT 2020}) 25... Na6 {[%emt 0:02:55]} (25... Rxa2 $2 26. Ra7 (26. b7 Ra7 $11) 26... g5 27. Rxa8 $18) (25... b3 $1 $11 26. b7 Ra7 27. Rc8+ Kf7 28. Rc7+ (28. Rxb8 Be5 $15) 28... Kg8 29. Rc8+ Kf7 30. Rc7+ (30. Rxb8 Be5 $15) 30... Kg8 31. Rc8+ Kf7) 26. Bxa6 $16 {[%emt 0:04:23] &Bianco is more active.} Rxa6 {[%emt 0:00:07]} 27. b7 {[%emt 0:04:19][%cal Rb7b8]} Rb6 {[%emt 0:00:04]} 28. Rd1 $1 {[%emt 0:00:38][%cal Rd1d8][%mdl 1024] White has strong compensation.} Bd4 {[%emt 0:00:38][%cal Ob4b3]} 29. h4 {[%emt 0:02:26]} ({Stronger than} 29. Rc8+ Ke7 30. b8=Q Rxb8 31. Rxb8 Rxa2 $1 $15) (29. h3 $142 $1 e5 30. Rxh7) 29... e5 {[%emt 0:01:24]} (29... Bxf2+ $2 30. Kh2 Bxh4 31. Rdd7 $18) (29... Rxa2 $2 30. Rxd4 Ke8 31. Rc8+ Ke7 32. b8=Q $18) 30. Rd3 $1 {[%emt 0:00:07] Black must now prevent Rf3+.} Kg8 {[%emt 0:16:42] [#]} (30... Rxa2 31. Rf3+ Ke8 32. Rf6 Rxf2 33. Rxf2 $18) (30... Ke8 $16) 31. Rf3 $1 $18 {[%emt 0:00:11][%cal Of3f6] And now Rf6! would win.} Rc2 {[%emt 0:00:07]} ({Less strong is} 31... Rxa2 32. Rc8+ Kg7 33. b8=Q Rxb8 34. Rxb8) (31... b3 $142 32. axb3 a4) 32. Rxc2 {[%emt 0:03:20]} Rxb7 {[%emt 0:00:03][%mdl 4096] Endgame KRR-KRB} 33. Rc8+ {[%emt 0:00:22]} Kg7 {[%emt 0:00:04]} 34. Ra8 {[%emt 0:00:17]} Ba7 {[%emt 0:01:52]} 35. g4 {[%emt 0:00:25][%cal Bg2g4,Bg4g5][%mdl 32]} a4 {[%emt 0:05:21]} 36. g5 {[%emt 0:00:08]} a3 {[%emt 0:00:22]} (36... b3 {might work better.} 37. axb3 axb3) 37. Rb3 {[%emt 0:01:37]} Bd4 $2 {[%emt 0:08:43] [#]} (37... Rf7 {was called for.} 38. Rxb4 Bxf2+ 39. Kg2 Bxh4 40. Rxa3 Bxg5) 38. Raxa3 $1 {[%emt 0:00:14][%mdl 512]} Rf7 {[%emt 0:00:03]} 39. Rxb4 {[%emt 0:00:44]} Bxf2+ $2 {[%emt 0:00:14]} (39... Bc5 {is a better defense.}) 40. Kg2 {[%emt 0:00:00] Threatens to win with Rf3.} Bc5 {[%emt 0:00:00]} 41. Rab3 {[%emt 0:05:15] Hoping for Rb7.} Bxb4 {[%emt 0:00:20]} 42. Rxb4 {[%emt 0:00:03] KR-KR} Ra7 {[%emt 0:00:18]} 43. a4 {[%emt 0:00:29]} Kf7 {[%emt 0:00:09]} 44. Kf3 {[%emt 0:06:51]} Ke6 {[%emt 0:00:05]} 45. Ke3 {[%emt 0:02:00]} Kd6 {[%emt 0:00:05]} 46. Kd3 {[%emt 0:05:08]} Kc6 {[%emt 0:00:04]} 47. Kc4 {[%emt 0:02:05]} Ra8 {[%emt 0:00:15]} 48. Kb3 {[%emt 0:01:11]} Rf8 {[%emt 0:01:22]} 49. Rb5 {[%emt 0:04:44]} Rf4 {[%emt 0:01:22]} 50. Rxe5 {[%emt 0:00:20]} Rxh4 {[%emt 0:01:02]} 51. Kc4 {[%emt 0:00:58]} Kd6 {[%emt 0:01:23]} 52. Rd5+ {[%emt 0:00:39]} Ke6 {[%emt 0:00:12]} 53. Kd4 {[%emt 0:00:20]} h5 {[%emt 0:00:22]} 54. gxh6 $1 {[%emt 0:01:02]} Rxh6 {[%emt 0:00:03]} 55. a5 {[%emt 0:00:51] White threatens a6 and mate.} Rh1 {[%emt 0:00:41]} 56. Kc5 {[%emt 0:01:00] White mates.} Re1 {[%emt 0:00:39]} 57. Kb6 {[%emt 0:01:03]} Rxe4 {[%emt 0:00:09] [#]} 58. Rb5 $1 {[%emt 0:00:15]} Kf6 {[%emt 0:01:59]} 59. a6 {[%emt 0:00:39]} g5 {[%emt 0:00:25]} 60. a7 {[%emt 0:00:29]} Re8 {[%emt 0:00:04]} 61. Ka6 {[%emt 0:01:36]} Kg6 {[%emt 0:00:45]} 62. Rb8 {[%emt 0:00:58]} Re1 {[%emt 0:01:02]} 63. a8=Q {[%emt 0:01:18]} Ra1+ {[%emt 0:00:04]} 64. Kb5 {[%emt 0:00:05]} Rxa8 {[%emt 0:00:03]} 65. Rxa8 {[%emt 0:00:04]} Kf5 {[%emt 0:00:03]} 66. Kc4 {[%emt 0:01:19] Weighted Error Value: White=0.06 (flawless) /Black=0.53} 1-0

[Event "Reykjavik Open 2022"]
[Site "Reykjavik"]
[Date "2022.04.10"]
[Round "6.9"]
[White "Cornette, Matthieu"]
[Black "Heimisson, Hilmir Freyr"]
[Result "1-0"]
[ECO "E21"]
[WhiteElo "2571"]
[BlackElo "2312"]
[Annotator "TA"]
[PlyCount "109"]
[EventDate "2022.04.06"]
[EventCountry "ISL"]
[SourceTitle "playchess.com"]
[Source "ChessBase"]
[SourceQuality "1"]
[TimeControl "40/5400+30:1800+30"]

{[%evp 10,109,17,18,16,23,27,6,7,0,7,0,0,-3,0,-20,-10,-4,-20,-31,-26,-29,-33,-8,-20,-12,0,0,0,0,0,0,200,194,176,0,254,261,263,261,314,337,301,231,235,213,274,259,371,181,224,212,212,188,194,99,95,32,36,20,31,0,0,0,68,37,50,52,66,33,33,27,32,27,67,43,93,91,114,90,101,101,169,160,183,125,204,218,228,14,20,0,234,228,370,328,1200,1106,868,862,29998,29999]} 1. d4 {[%emt 0:00:07]} Nf6 {[%emt 0:00:11]} 2. c4 {[%emt 0:00:07]} e6 {[%emt 0:00:06]} 3. Nc3 {[%emt 0:00:28]} Bb4 {[%emt 0:00:30]} 4. Nf3 {[%emt 0:01:07]} O-O {[%emt 0:03:45]} 5. Bg5 {[%emt 0:00:55][%cal Bc1g5,Bg5h4,Bh4g3][%mdl 32]} c5 {[%emt 0:01:01]} 6. Rc1 {[%emt 0:01:01]} cxd4 {[%emt 0:01:17] E21: Nimzo-Indian: 4 Nf3.} 7. Nxd4 {[%emt 0:00:34]} h6 {[%emt 0:00:45]} 8. Bh4 {[%emt 0:01:54]} d5 {[%emt 0:00:34] The position is equal. 8...d5 is better than 8...Nc6.} 9. cxd5 {[%emt 0:00:50]} g5 {[%emt 0:00:10] Strongly threatening ...e5.} 10. Bg3 {[%emt 0:00:06]} Qxd5 {[%emt 0:00:12]} 11. e3 {[%emt 0:00:56]} Qxa2 {[%emt 0:00:23]} 12. Bd3 {[%emt 0:02:25]} (12. Qd2 Ne4 $1 13. Qc2 Bxc3+ 14. bxc3 Qxc2 15. Rxc2 Nxg3 16. hxg3 Kg7 $17) 12... Qxb2 {[%emt 0:00:12]} 13. O-O $1 {[%emt 0:01:04]} Bxc3 {[%emt 0:00:08]} 14. Rc2 {[%emt 0:00:15]} Qb4 {[%emt 0:27:09]} 15. Nb5 {[%emt 0:00:08] [#]} e5 $1 {[%emt 0:04:37][%cal Ob8c6]} 16. Rxc3 {[%emt 0:00:05]} Nc6 {[%emt 0:02:02]} 17. f4 {[%emt 0:04:43] [#] Hoping for fxg5.} gxf4 $146 {[%emt 0:04:31]} ({Predecessor:} 17... Bg4 18. Qc2 exf4 19. exf4 Nd5 20. fxg5 Nxc3 21. Nxc3 Rad8 22. Kh1 Qd4 23. Bh7+ Kh8 {0-1 (33) Mamedyarov,S (2770)-Nakamura,H (2736) chess24.com INT 2021}) 18. Be1 {[%emt 0:12:58][%cal Oc3c6]} Bg4 {[%emt 0:06:47]} 19. Qc1 {[%emt 0:03:19]} Qe7 {[%emt 0:05:38]} 20. Bh4 $1 {[%emt 0:02:40]} Rad8 $2 {[%emt 0:11:44]} (20... a6 $11 {and Black is okay.} 21. Na3 Nb4) 21. exf4 $18 {[%emt 0:04:55]} e4 {[%emt 0:00:14] [#]} 22. Bb1 {[%emt 0:01:55] A strong pair of Bishops.} (22. Bxe4 $1 $18 {[%mdl 512] Black must now prevent Re3.} Qxe4 23. Bxf6) 22... Rd5 $2 {[%emt 0:12:27][%mdl 8192] [#]} (22... a6 $11) 23. Rg3 $1 {[%emt 0:03:40]} Rxb5 {[%emt 0:01:14] [#]} 24. Rxg4+ $1 {[%emt 0:01:44][%mdl 512]} Nxg4 {[%emt 0:01:59]} (24... Kh7 25. Qc3) 25. Bxe7 {[%emt 0:00:09]} Nxe7 {[%emt 0:00:09]} 26. Bxe4 {[%emt 0:03:00]} Nf6 {[%emt 0:01:13]} 27. Bf3 {[%emt 0:07:35]} Rc8 {[%emt 0:02:46]} 28. Qa1 {[%emt 0:00:52]} Kg7 {[%emt 0:01:20]} (28... Ned5 $142 29. Qxa7 Rb4) 29. Qxa7 {[%emt 0:00:28]} (29. g4 $142) 29... Nf5 {[%emt 0:00:58]} 30. Qa4 {[%emt 0:20:09] Against Rc2} (30. Bxb7 $2 Rc7 31. Qa3 Rcxb7 $19) 30... Rcc5 {[%emt 0:01:04]} 31. Re1 {[%emt 0:04:10]} Rb2 {[%emt 0:01:30]} 32. g4 {[%emt 0:07:15]} ({Better is} 32. Qa1 $18 Rcb5 33. Be2) 32... Nh4 $16 {[%emt 0:01:17]} 33. Bh1 {[%emt 0:00:44]} ({White should play} 33. Be4 $16) 33... Rcb5 $1 $14 {[%emt 0:03:50]} 34. Qa1 {[%emt 0:02:05]} Ng6 $1 {[%emt 0:00:00]} 35. Rf1 {[%emt 0:01:40][%cal Oh1e4]} Nxf4 $1 {[%emt 0:00:34][%cal Rf4h3]} 36. Bf3 {[%emt 0:00:21]} Ng6 {[%emt 0:01:42]} ({Black should try} 36... Nh3+ $11 37. Kh1 Nf2+ 38. Kg1 Nh3+ 39. Kh1 Nf2+ 40. Kg1 Nh3+) 37. Qe1 {[%emt 0:02:43]} Re5 {[%emt 0:00:55]} 38. Qc3 $36 {[%emt 0:00:54][%mdl 2048] White is more active.} Rbb5 {[%emt 0:00:18]} 39. Bxb7 {[%emt 0:02:58]} Nxg4 {[%emt 0:02:13]} (39... Rxb7 40. Qc6 Rbe7 41. Qxf6+ Kg8 42. h3 $16) 40. Ba6 {[%emt 0:00:00]} Rbc5 {[%emt 0:00:00]} 41. Qf3 {[%emt 0:07:01][%mdl 1024] White has compensation.} f5 {[%emt 0:03:13]} 42. Bd3 {[%emt 0:01:57] And now Qb7+ would win.} Ne7 {[%emt 0:06:54]} (42... h5 $14) 43. Qb7 $16 {[%emt 0:04:02]} ({Not} 43. Bxf5 $2 Rxf5 44. Qb7 (44. Qxg4+ $2 Rg5 $19) 44... Rxf1+ 45. Kxf1 Re5 $19) 43... Ne3 {[%emt 0:07:15]} 44. Ra1 {[%emt 0:00:20]} N3d5 {[%emt 0:01:35]} 45. Kh1 {[%emt 0:02:23]} Rc3 {[%emt 0:02:07]} (45... Nf4 $16) 46. Rg1+ $18 {[%emt 0:01:52]} Kf7 {[%emt 0:00:06] [#]} 47. Bb5 {[%emt 0:02:13]} (47. Qb8 $1 $18 Re6 {[#]} (47... Ke6 48. Bb5) 48. Qh8 $1) 47... Nc7 {[%emt 0:06:19]} (47... Nf6 $16 {keeps fighting.}) 48. Ba4 {[%emt 0:01:32] aiming for Qb6.} Ree3 {[%emt 0:04:10]} 49. Bd7 $2 {[%emt 0:04:45]} ({But not} 49. Qg2 $6 Ne6 50. Qa8 Rc8) (49. Qb8 $18) 49... Re2 {[%emt 0:02:22]} 50. Ba4 $2 {[%emt 0:04:27]} (50. Qb6 $11 Rcc2 51. Qxh6 Rxh2+ 52. Qxh2 Rxh2+ 53. Kxh2) 50... Ree3 $1 {[%emt 0:00:40]} 51. Qb8 {[%emt 0:01:31] Bd7 is the strong threat.} ({Don't do} 51. Qg2 $6 Ne6 52. Qa8 Rc8) 51... Ng6 {[%emt 0:02:41]} (51... Ncd5 {is a better defense.} 52. Be8+ Ke6) 52. Qc8 {[%emt 0:02:24] Chess con chili.} Re6 $2 {[%emt 0:01:02]} (52... Ne7 53. Qh8 Ke6 54. Qxh6+ Ke5 55. Qg7+ Ke6 56. Qh6+ Ke5 57. Qh8+ Ke6 58. Qh6+) 53. Qd7+ {[%emt 0:01:21]} Ne7 {[%emt 0:00:17]} 54. Qd4 {[%emt 0:00:09][%csl Gg1][%cal Rd4g7]} Ree3 {[%emt 0:00:41]} 55. Rg7+ {[%emt 0:00:12] Weighted Error Value: White=0.29 (precise) /Black=0.42} 1-0

[Event "Reykjavik Open 2022"]
[Site "Reykjavik"]
[Date "2022.04.10"]
[Round "6.10"]
[White "Gretarsson, Hjorvar Steinn"]
[Black "Sarkar, Justin"]
[Result "1-0"]
[ECO "A29"]
[WhiteElo "2548"]
[BlackElo "2314"]
[Annotator "TA"]
[PlyCount "69"]
[EventDate "2022.04.06"]
[EventCountry "ISL"]
[SourceTitle "playchess.com"]
[Source "ChessBase"]
[SourceQuality "1"]
[TimeControl "40/5400+30:1800+30"]

{[%evp 19,69,6,15,0,23,45,46,40,51,0,12,17,42,27,25,27,37,43,146,149,147,117,124,112,160,173,158,124,115,122,197,193,217,143,232,239,222,219,264,108,254,241,736,728,633,718,701,679,638,609,504,479]} 1. c4 {[%emt 0:09:08]} e5 {[%emt 0:00:52]} 2. g3 {[%emt 0:01:36]} Nf6 {[%emt 0:01:53]} 3. Nc3 {[%emt 0:02:33]} d5 {[%emt 0:05:31]} 4. cxd5 {[%emt 0:00:44]} Nxd5 {[%emt 0:00:13]} 5. Bg2 {[%emt 0:00:04]} Nb6 {[%emt 0:00:22]} 6. d3 {[%emt 0:00:06]} Be7 {[%emt 0:01:24]} 7. Be3 {[%emt 0:00:07]} O-O {[%emt 0:01:43]} 8. Rc1 {[%emt 0:00:04]} f5 {[%emt 0:11:59]} 9. Nf3 {[%emt 0:01:27][%cal Bg1f3,Bf3e1,Be1d3][%mdl 32]} Nc6 {[%emt 0:00:44]} 10. O-O {[%emt 0:00:09]} Be6 {[%emt 0:01:44]} 11. Na4 {[%emt 0:06:22][%cal Oc1c6] A29: English Opening: Four Knights Variation with 4 g3.} e4 {[%emt 0:18:20]} 12. Ne1 {[%emt 0:04:06] [#]} Nd5 $146 {[%emt 0:08:36]} ({Predecessor:} 12... Bxa2 13. Bc5 Bd5 14. Bxe7 Qxe7 15. Nc3 Rad8 16. Nxd5 Rxd5 17. e3 Rdd8 18. Qb3+ Kh8 {0-1 (39) Kukurin,L (1979)-Bosnjak,P (2177) Sv Filip i Jakov 2014}) 13. Bc5 {[%emt 0:02:36] White is slightly better.} Ndb4 {[%emt 0:06:38]} 14. Bxe7 {[%emt 0:12:29]} Qxe7 {[%emt 0:00:09]} 15. a3 {[%emt 0:01:12]} Na6 {[%emt 0:06:46]} 16. dxe4 {[%emt 0:16:28]} Rad8 $1 {[%emt 0:00:18]} 17. Nd3 {[%emt 0:01:16]} Nd4 {[%emt 0:01:13] [#] White must now prevent ...Bb3.} 18. Nc3 $1 {[%emt 0:03:33]} c5 {[%emt 0:07:41]} (18... fxe4 $14 19. Nxe4 c5) 19. exf5 $16 {[%emt 0:02:38]} Bxf5 {[%emt 0:00:41]} 20. e4 {[%emt 0:01:36]} Be6 {[%emt 0:01:06]} 21. Nf4 {[%emt 0:04:54]} Rxf4 {[%emt 0:03:38]} 22. gxf4 {[%emt 0:01:02][%cal Bg3f4,Bf4f5][%mdl 32]} Nb3 {[%emt 0:06:01]} 23. Qh5 {[%emt 0:04:41] And now Rcd1 would win.} Nxc1 {[%emt 0:00:53]} 24. Rxc1 {[%emt 0:00:10][%cal Bf1c1,Bc1e1,Be1e8][%mdl 32]} c4 {[%emt 0:01:40]} (24... Nb8 $16) 25. Qe5 $18 {[%emt 0:02:43] Hoping for f5.} Qf6 {[%emt 0:06:45]} 26. Qa5 {[%emt 0:02:03] Threatens to win with f5.} Rd3 {[%emt 0:05:12] [#]} (26... Rc8 $16 {is a better defense.}) 27. f5 $1 {[%emt 0:02:33]} Bf7 {[%emt 0:00:10]} 28. Re1 {[%emt 0:00:54]} h5 {[%emt 0:00:32]} 29. Nd5 {[%emt 0:01:02]} (29. Qb5 $18 {is more deadly.}) 29... Bxd5 {[%emt 0:00:36] Loses the game.} (29... Qd4 $16) 30. exd5 {[%emt 0:00:04]} Qxb2 $2 {[%emt 0:01:37]} (30... Rd4 31. Qb5 Qf7) 31. Qd8+ {[%emt 0:02:21] White is clearly winning.} ({Weaker is} 31. Qa4 Qf6 32. Qxc4 Rc3 $18) 31... Kh7 {[%emt 0:00:02]} 32. Re8 {[%emt 0:03:22][%csl Gd8][%cal Re8h8]} Rd1+ {[%emt 0:00:14]} 33. Bf1 {[%emt 0:00:05]} Rxf1+ {[%emt 0:00:18]} 34. Kxf1 {[%emt 0:00:04][%csl Gd8][%cal Re8h8]} Qb1+ {[%emt 0:00:26]} 35. Kg2 {[%emt 0:00:07] Weighted Error Value: White=0.22 (precise) /Black=0.38} 1-0

[Event "Reykjavik Open 2022"]
[Site "Reykjavik"]
[Date "2022.04.10"]
[Round "6.11"]
[White "Yoo, Christopher Woojin"]
[Black "Minko, Dmitry"]
[Result "1-0"]
[ECO "C51"]
[WhiteElo "2514"]
[BlackElo "2298"]
[Annotator "TA"]
[PlyCount "87"]
[EventDate "2022.04.06"]
[EventCountry "ISL"]
[SourceTitle "playchess.com"]
[Source "ChessBase"]
[SourceQuality "1"]
[TimeControl "40/5400+30:1800+30"]

{[%evp 10,87,35,34,29,12,39,33,55,58,55,46,69,16,23,5,12,0,0,-8,18,0,28,0,0,0,25,22,42,43,42,26,30,32,25,27,37,37,60,37,41,29,41,39,37,38,103,118,116,114,97,111,103,61,64,54,53,47,200,195,212,212,219,211,218,208,243,212,354,335,584,554,771,751,12839,12839,12837,12829,2017,776]} 1. e4 {[%emt 0:00:11]} e5 {[%emt 0:00:41]} 2. Nf3 {[%emt 0:00:15]} Nc6 {[%emt 0:00:26]} 3. Bc4 {[%emt 0:00:13]} Bc5 {[%emt 0:00:44]} 4. b4 {[%emt 0:00:23]} Bb6 {[%emt 0:00:42]} 5. a4 {[%emt 0:00:07]} a6 {[%emt 0:00:29]} 6. O-O {[%emt 0:00:11][%cal Od2d4]} Nf6 {[%emt 0:01:02] C51: Evans Gambit: Declined and Accepted without 5...Ba5.} 7. d4 {[%emt 0:00:17]} d6 {[%emt 0:02:56][%cal Re5d4]} (7... Bxd4 $5 8. Nxd4 Nxd4 $11) 8. dxe5 {[%emt 0:06:15]} Nxe5 {[%emt 0:02:03] White is slightly better.} 9. Nxe5 {[%emt 0:00:29]} dxe5 {[%emt 0:00:06]} 10. Qxd8+ {[%emt 0:07:29]} Kxd8 {[%emt 0:00:11] [#]} 11. Bg5 $146 {[%emt 0:14:59]} ({Much worse is} 11. Bxf7 $6 Rf8 12. a5 (12. Rd1+ Ke7 $15) 12... Ba7 $11) (11. Nd2 $14) ({Predecessor:} 11. Nd2 Ke8 12. Bb2 Nd7 13. a5 Ba7 14. Ra3 f6 15. Rg3 g5 16. Rf3 Kf8 17. Rd1 {1-0 (24) Schirmer,M-Goulas,K DESC email 2007}) 11... Ke7 $11 {[%emt 0:03:36]} 12. a5 {[%emt 0:03:49]} Bd4 {[%emt 0:02:17]} 13. c3 {[%emt 0:04:44]} Ba7 {[%emt 0:00:23]} 14. Nd2 {[%emt 0:02:41]} Re8 {[%emt 0:44:22]} 15. h3 {[%emt 0:10:01]} Bd7 {[%emt 0:01:36]} 16. Bd5 {[%emt 0:06:25]} c6 {[%emt 0:04:41]} 17. Bb3 {[%emt 0:00:19]} Kf8 {[%emt 0:11:24]} 18. Rfd1 {[%emt 0:07:07]} c5 {[%emt 0:04:11]} 19. Bxf6 {[%emt 0:01:42]} gxf6 {[%emt 0:00:05]} 20. Bd5 {[%emt 0:01:20]} cxb4 {[%emt 0:01:52]} 21. cxb4 {[%emt 0:00:17]} Rab8 {[%emt 0:02:20]} 22. Rac1 {[%emt 0:06:09][%cal Ba1c1,Bc1c3,Bc3f3,Bf3f6][%mdl 32]} Ba4 {[%emt 0:01:55]} 23. Re1 {[%emt 0:00:38]} Re7 {[%emt 0:00:31]} 24. Rc3 {[%emt 0:06:05]} Bd4 {[%emt 0:01:59]} 25. Rf3 {[%emt 0:02:26]} Rc8 {[%emt 0:00:54][%cal Of6f5] Prevents Rc1.} 26. Rxf6 {[%emt 0:02:59]} Rc2 {[%emt 0:02:17]} 27. Nc4 {[%emt 0:00:59][%cal Bd2c4,Bc4e3,Be3d5][%mdl 32]} Bb3 {[%emt 0:02:53]} (27... Rc7 $14 28. Ne3 Rb2) 28. Ne3 {[%emt 0:04:39]} Rb2 {[%emt 0:01:00]} 29. Bxb3 {[%emt 0:01:53] &Bianco is more active.} Rxb3 {[%emt 0:00:01]} 30. Nd5 $36 {[%emt 0:00:13][%mdl 2048] [#] Black must now prevent Rc1. White is really pushing.} Re6 {[%emt 0:00:33]} 31. Rf3 {[%emt 0:01:19]} Rxf3 {[%emt 0:02:00]} 32. gxf3 $14 {[%emt 0:00:04][%mdl 4096] Endgame KRB-KRN} Rc6 {[%emt 0:00:42] Against Rc1} 33. Re2 {[%emt 0:00:40]} f5 $2 {[%emt 0:03:11] This move loses the game for Black.} (33... f6 $14) 34. exf5 $18 {[%emt 0:00:44]} Kf7 {[%emt 0:00:23]} 35. Kf1 {[%emt 0:02:29]} Rd6 {[%emt 0:00:44]} 36. Ne3 {[%emt 0:02:10]} Kf6 {[%emt 0:00:06]} 37. Rd2 {[%emt 0:01:53]} Rc6 {[%emt 0:01:02]} 38. Nd5+ {[%emt 0:00:16]} Kg5 {[%emt 0:00:05]} (38... Kg7 $142 39. f4 Rd6) 39. f4+ {[%emt 0:01:32]} Kh4 $2 {[%emt 0:00:01]} (39... Kh6 {was called for.} 40. fxe5 Bxe5) 40. Kg2 {[%emt 0:00:00] White is clearly winning.} Rd6 {[%emt 0:00:00] [#]} 41. f6 $1 {[%emt 0:03:20][%cal Bf5f6,Bf6f7][%mdl 32]} Rc6 {[%emt 0:16:08]} (41... Rd8 42. Ne7) 42. f7 {[%emt 0:00:52]} Rc8 {[%emt 0:00:08]} 43. fxe5 {[%emt 0:00:12]} Bxe5 {[%emt 0:00:14]} 44. Re2 {[%emt 0:00:06] Weighted Error Value: White=0.10 (very precise) /Black=0.36} (44. f4 $142 Bg7 45. Ne7) 1-0